[Event "4NCL Div 2 2024-25"]
[Site "England"]
[Date "2024.11.24"]
[Round "2.27"]
[White "Navaratnam, Rohan Shan Tze"]
[Black "Sivanandan, Bodhana"]
[Result "1-0"]
[Annotator "RC"]
[ECO "D12"]
[WhiteElo "2306"]
[BlackElo "2082"]
[PlyCount "109"]
[EventDate "2024.11.23"]
[EventType "team-tourn"]
[EventCountry "ENG"]
[SourceTitle "playchess.com"]
[Source "ChessBase"]
[SourceQuality "1"]
[TimeControl "40/6000+30:3000+30"]

1. Nf3 {[%emt 0:10:03]} d5 {[%emt 0:10:12]} 2. d4 {[%emt 0:00:07]} Nf6 {[%emt 0:00:11]} 3. c4 {[%emt 0:00:02]} c6 {[%emt 0:00:15]} 4. e3 {[%emt 0:00:03]} Bf5 {[%emt 0:00:48]} 5. cxd5 {[%emt 0:00:10]} cxd5 {[%emt 0:00:25]} 6. Qb3 {[%emt 0:00:13]} Qb6 {[%emt 0:00:49]} 7. Qxb6 {[%emt 0:02:01]} axb6 {[%emt 0:00:15]} 8. Bb5+ {[%emt 0:00:07]} Nc6 {[%emt 0:01:36]} 9. Nc3 {[%emt 0:02:20]} Bd7 {[%emt 0:12:10]} 10. Bd2 {[%emt 0:02:00]} Nb8 {[%emt 0:07:16]} 11. Ne5 {[%emt 0:03:41]} e6 {[%emt 0:03:32]} 12. Nxd7 {[%emt 0:06:31]} Nfxd7 {[%emt 0:00:27]} 13. Na4 {[%emt 0:04:16]} Nc6 {[%emt 0:03:03]} 14. Rc1 {[%emt 0:00:23]} Rc8 {[%emt 0:01:15]} 15. O-O {[%emt 0:02:57]} Bd6 {[%emt 0:04:21]} 16. Rc2 {[%emt 0:02:05]} Ke7 {[%emt 0:01:35]} 17. Rfc1 {[%emt 0:00:13]} Na7 {[%emt 0:04:17]} 18. Bxd7 {[%emt 0:01:25]} Rxc2 {[%emt 0:00:08]} 19. Rxc2 {[%emt 0:00:08]} Kxd7 {[%emt 0:00:06]} 20. Nxb6+ {[%emt 0:00:08]} Ke7 {[%emt 0:00:58]} 21. f3 {[%emt 0:17:45]} f5 {[%emt 0:03:30]} 22. Kf2 {[%emt 0:07:44]} h6 {[%emt 0:03:23]} 23. b4 {[%emt 0:03:40]} g5 {[%emt 0:00:53]} 24. a4 {[%emt 0:00:55]} Kd8 {[%emt 0:08:02]} 25. b5 {[%emt 0:01:24]} Ke7 {[%emt 0:02:49]} 26. h3 {[%emt 0:01:12]} Rf8 {[%emt 0:01:09]} 27. Ke2 {[%emt 0:01:00]} Rg8 {[%emt 0:01:54]} 28. Be1 {[%emt 0:04:55]} h5 {[%emt 0:01:09]} 29. Kd3 {[%emt 0:00:31]} Rf8 {[%emt 0:01:35]} 30. Rc1 {[%emt 0:08:47]} Rg8 {[%emt 0:02:43]} 31. Rc2 {[%emt 0:01:58]} Rf8 {[%emt 0:00:22]} 32. Bd2 {[%emt 0:01:31]} Rg8 {[%emt 0:01:04]} 33. e4 {[%emt 0:00:44]} dxe4+ {[%emt 0:05:51]} 34. fxe4 {[%emt 0:00:03]} fxe4+ {[%emt 0:00:25]} 35. Kxe4 {[%emt 0:00:09]} Kd8 {[%emt 0:03:39]} 36. Ba5 {[%emt 0:01:52]} Ke7 {[%emt 0:00:14]} 37. Bd2 {[%emt 0:01:39]} Kd8 {[%emt 0:00:29]} 38. Be3 {[%emt 0:01:29]} Rg7 {[%emt 0:04:55]} 39. g4 {[%emt 0:03:21]} hxg4 {[%emt 0:01:40]} 40. hxg4 {[%emt 0:00:02]} Rg8 {[%emt 0:01:01]} 41. Rc1 {[%emt 0:54:19]} Rg7 {[%emt 0:54:46]} 42. Rh1 {[%emt 0:01:38]} Rg8 {[%emt 0:02:10]} 43. Rh7 {[%emt 0:08:09]} Be7 {[%emt 0:01:04]} 44. d5 {[%emt 0:03:44]} exd5+ {[%emt 0:00:59]} 45. Kxd5 {[%emt 0:00:00]} Ke8 {[%emt 0:00:00]} 46. Bc5 {[%emt 0:00:00]} Bxc5 {[%emt 0:00:00]} 47. Kxc5 {[%emt 0:00:00]} Kd8 {[%emt 0:00:00]} 48. Rd7+ {[%emt 0:00:00]} Ke8 {[%emt 0:00:00]} 49. Rxb7 {[%emt 0:00:00]} Nxb5 {[%emt 0:00:00]} 50. Kxb5 {[%emt 0:00:00]} Rg6 {[%emt 0:00:00]} 51. a5 {[%emt 0:00:00]} Rf6 {[%emt 0:00:00]} 52. a6 {[%emt 0:00:00]} Rf1 {[%emt 0:00:00]} 53. a7 {[%emt 0:00:00]} Rb1+ {[%emt 0:00:00]} 54. Ka5 {[%emt 0:00:00]} Ra1+ {[%emt 0:00:00]} 55. Na4 {[%emt 0:00:00]} 1-0

[Event "4NCL Div 2 2024-25"]
[Site "England"]
[Date "2024.11.24"]
[Round "2.28"]
[White "Hill, Alistair"]
[Black "Longson, Alexander"]
[Result "1/2-1/2"]
[Annotator "RC"]
[ECO "A13"]
[WhiteElo "2076"]
[BlackElo "2250"]
[PlyCount "38"]
[EventDate "2024.11.23"]
[EventType "team-tourn"]
[EventCountry "ENG"]
[SourceTitle "playchess.com"]
[Source "ChessBase"]
[SourceQuality "1"]
[TimeControl "40/6000+30:3000+30"]

1. c4 {[%emt 0:10:17]} e6 {[%emt 0:10:11]} 2. g3 {[%emt 0:00:20]} d5 {[%emt 0:00:11]} 3. Bg2 {[%emt 0:00:21]} Nf6 {[%emt 0:00:10]} 4. Nf3 {[%emt 0:00:04]} dxc4 {[%emt 0:00:23]} 5. O-O {[%emt 0:00:07]} a6 {[%emt 0:00:46]} 6. Qc2 {[%emt 0:01:53]} c5 {[%emt 0:00:33]} 7. Qxc4 {[%emt 0:07:03]} b5 {[%emt 0:00:46]} 8. Qc2 {[%emt 0:00:04]} Bb7 {[%emt 0:00:27]} 9. b3 {[%emt 0:01:16]} Nc6 {[%emt 0:05:29]} 10. Bb2 {[%emt 0:02:00]} Be7 {[%emt 0:03:28]} 11. Rd1 {[%emt 0:03:42]} Rc8 {[%emt 0:01:59]} 12. d3 {[%emt 0:09:25]} Nd4 {[%emt 0:09:15]} 13. Bxd4 {[%emt 0:00:31]} cxd4 {[%emt 0:00:12]} 14. Qb2 {[%emt 0:00:06]} Bxf3 {[%emt 0:19:37]} 15. Bxf3 {[%emt 0:00:41]} Qb6 {[%emt 0:06:00]} 16. Nd2 {[%emt 0:23:34]} Bb4 {[%emt 0:12:19]} 17. Rac1 {[%emt 0:00:06]} Kd7 {[%emt 0:05:40]} 18. Nb1 {[%emt 0:02:46]} Rxc1 {[%emt 0:07:28]} 19. Rxc1 {[%emt 0:00:22]} Rc8 {[%emt 0:00:22]} 1/2-1/2

[Event "4NCL Div 2 2024-25"]
[Site "England"]
[Date "2024.11.24"]
[Round "2.29"]
[White "Jackson, Edward"]
[Black "Starley, Robert"]
[Result "1/2-1/2"]
[Annotator "RC"]
[ECO "E11"]
[WhiteElo "2132"]
[BlackElo "2036"]
[PlyCount "77"]
[EventDate "2024.11.23"]
[EventType "team-tourn"]
[EventCountry "ENG"]
[SourceTitle "playchess.com"]
[Source "ChessBase"]
[SourceQuality "1"]
[TimeControl "40/6000+30:3000+30"]

1. d4 {[%emt 0:10:29]} Nf6 {[%emt 0:10:08]} 2. c4 {[%emt 0:00:08]} e6 {[%emt 0:00:04]} 3. Nf3 {[%emt 0:00:07]} Bb4+ {[%emt 0:00:19]} 4. Bd2 {[%emt 0:01:36]} a5 {[%emt 0:00:42]} 5. g3 {[%emt 0:04:49]} O-O {[%emt 0:01:16]} 6. Bg2 {[%emt 0:00:07]} Ne4 {[%emt 0:02:16]} 7. a3 {[%emt 0:02:10]} Bxd2+ {[%emt 0:01:23]} 8. Nbxd2 {[%emt 0:02:00]} f5 {[%emt 0:01:08]} 9. Qc2 {[%emt 0:00:46]} Nxd2 {[%emt 0:03:08]} 10. Nxd2 {[%emt 0:13:01]} d6 {[%emt 0:03:51]} 11. O-O {[%emt 0:04:16]} a4 {[%emt 0:08:11]} 12. f4 {[%emt 0:08:42]} Nd7 {[%emt 0:03:47]} 13. e4 {[%emt 0:00:50]} fxe4 {[%emt 0:01:22]} 14. Nxe4 {[%emt 0:07:06]} Nf6 {[%emt 0:08:36]} 15. Nc3 {[%emt 0:01:17]} Ng4 {[%emt 0:03:32]} 16. Rae1 {[%emt 0:03:19]} e5 {[%emt 0:05:50]} 17. Bd5+ {[%emt 0:14:44]} Kh8 {[%emt 0:00:16]} 18. dxe5 {[%emt 0:00:32]} dxe5 {[%emt 0:02:56]} 19. h3 {[%emt 0:03:59]} Nh6 {[%emt 0:04:22]} 20. fxe5 {[%emt 0:02:40]} Rxf1+ {[%emt 0:01:08]} 21. Rxf1 {[%emt 0:00:55]} Bxh3 {[%emt 0:00:38]} 22. Bg2 {[%emt 0:01:32]} Bxg2 {[%emt 0:04:28]} 23. Kxg2 {[%emt 0:00:21]} Qg5 {[%emt 0:03:12]} 24. Qe4 {[%emt 0:02:58]} Ng4 {[%emt 0:08:06]} 25. Rf4 {[%emt 0:02:02]} Nxe5 {[%emt 0:02:57]} 26. Rf5 {[%emt 0:01:20]} Qd2+ {[%emt 0:00:13]} 27. Rf2 {[%emt 0:00:12]} Qd6 {[%emt 0:03:31]} 28. Qxb7 {[%emt 0:00:54]} Rf8 {[%emt 0:03:28]} 29. Rxf8+ {[%emt 0:01:05]} Qxf8 {[%emt 0:00:04]} 30. Qe4 {[%emt 0:00:31]} Nf7 {[%emt 0:03:26]} 31. Qf4 {[%emt 0:05:12]} h6 {[%emt 0:01:03]} 32. Qxc7 {[%emt 0:03:03]} Ng5 {[%emt 0:00:42]} 33. Qf4 {[%emt 0:01:39]} Qc8 {[%emt 0:00:32]} 34. g4 {[%emt 0:01:35]} Qb7+ {[%emt 0:00:22]} 35. Kg3 {[%emt 0:02:47]} Qxb2 {[%emt 0:00:48]} 36. Qf8+ {[%emt 0:00:28]} Kh7 {[%emt 0:00:13]} 37. Qf5+ {[%emt 0:00:17]} Kh8 {[%emt 0:00:15]} 38. Qf8+ {[%emt 0:00:37]} Kh7 {[%emt 0:00:05]} 39. Qf5+ {[%emt 0:02:40]} 1/2-1/2

[Event "4NCL Div 2 2024-25"]
[Site "England"]
[Date "2024.11.24"]
[Round "2.30"]
[White "Goh, Jinghan Cameron"]
[Black "Smith, Alan A"]
[Result "1-0"]
[Annotator "RC"]
[ECO "A40"]
[WhiteElo "2017"]
[BlackElo "2227"]
[PlyCount "49"]
[EventDate "2024.11.23"]
[EventType "team-tourn"]
[EventCountry "ENG"]
[SourceTitle "playchess.com"]
[Source "ChessBase"]
[SourceQuality "1"]
[TimeControl "40/6000+30:3000+30"]

1. d4 {[%emt 0:10:03]} e6 {[%emt 0:10:48]} 2. c4 {[%emt 0:00:10]} b6 {[%emt 0:00:05]} 3. Nc3 {[%emt 0:00:20]} Bb4 {[%emt 0:00:53]} 4. e4 {[%emt 0:02:57]} Bb7 {[%emt 0:00:12]} 5. f3 {[%emt 0:00:20]} f5 {[%emt 0:07:47]} 6. exf5 {[%emt 0:00:09]} Nh6 {[%emt 0:00:18]} 7. fxe6 {[%emt 0:00:15]} O-O {[%emt 0:00:32]} 8. Be3 {[%emt 0:02:41]} Nf5 {[%emt 0:02:03]} 9. Qd2 {[%emt 0:00:50]} Nxe3 {[%emt 0:14:08]} 10. Qxe3 {[%emt 0:00:17]} Re8 {[%emt 0:01:34]} 11. O-O-O {[%emt 0:03:11]} Rxe6 {[%emt 0:00:13]} 12. Qd2 {[%emt 0:03:19]} Qe8 {[%emt 0:04:19]} 13. Bd3 {[%emt 0:03:21]} Re3 {[%emt 0:02:48]} 14. Be4 {[%emt 0:09:26]} Rxc3+ {[%emt 0:00:36]} 15. bxc3 {[%emt 0:00:15]} Ba3+ {[%emt 0:00:07]} 16. Kb1 {[%emt 0:02:25]} d5 {[%emt 0:02:39]} 17. Bxd5+ {[%emt 0:06:16]} Bxd5 {[%emt 0:00:11]} 18. cxd5 {[%emt 0:00:07]} a5 {[%emt 0:04:02]} 19. Qe2 {[%emt 0:06:07]} Qf8 {[%emt 0:01:49]} 20. Nh3 {[%emt 0:04:14]} Na6 {[%emt 0:01:16]} 21. Rhe1 {[%emt 0:02:03]} Nb4 {[%emt 0:01:25]} 22. Qe6+ {[%emt 0:00:59]} Kh8 {[%emt 0:00:03]} 23. Ng5 {[%emt 0:03:46]} Rc8 {[%emt 0:02:24]} 24. Nf7+ {[%emt 0:00:56]} Kg8 {[%emt 0:00:02]} 25. Nd6+ {[%emt 0:00:59]} 1-0

[Event "4NCL Div 2 2024-25"]
[Site "England"]
[Date "2024.11.24"]
[Round "2.31"]
[White "McLean, Robert"]
[Black "Chan, Nevil"]
[Result "1/2-1/2"]
[Annotator "NA RC"]
[ECO "B00"]
[WhiteElo "2011"]
[BlackElo "2011"]
[PlyCount "27"]
[EventDate "2024.11.23"]
[EventType "team-tourn"]
[EventCountry "ENG"]
[SourceTitle "playchess.com"]
[Source "ChessBase"]
[SourceQuality "1"]
[TimeControl "40/6000+30:3000+30"]

1. e4 {[%emt 0:10:07]} Nc6 {[%emt 0:13:19]} 2. Nc3 {[%emt 0:01:17]} Nf6 {[%emt 0:02:36]} 3. Nf3 {[%emt 0:01:02]} d6 {[%emt 0:04:08]} 4. d4 {[%emt 0:01:06]} Bg4 {[%emt 0:01:06]} 5. d5 {[%emt 0:02:23]} Nb8 {[%emt 0:02:50]} 6. h3 {[%emt 0:01:46]} Bxf3 {[%emt 0:01:24]} 7. Qxf3 {[%emt 0:01:05]} g6 {[%emt 0:04:20]} 8. g3 {[%emt 0:01:03]} Bg7 {[%emt 0:01:07]} 9. Bg2 {[%emt 0:00:09]} O-O {[%emt 0:03:58]} 10. O-O {[%emt 0:00:12]} c5 {[%emt 0:03:56]} 11. Qd3 {[%emt 0:03:46]} Na6 {[%emt 0:03:50]} 12. Be3 {[%emt 0:04:32]} Nc7 {[%emt 0:04:41]} 13. a4 {[%emt 0:02:37]} b6 {[%emt 0:06:19]} 14. f4 {[%emt 0:03:01]} 1/2-1/2

[Event "4NCL Div 2 2024-25"]
[Site "England"]
[Date "2024.11.24"]
[Round "2.32"]
[White "Alldritt, Nigel R E"]
[Black "Longson, Sarah N"]
[Result "1/2-1/2"]
[Annotator "NA RC"]
[ECO "D30"]
[WhiteElo "1898"]
[BlackElo "1929"]
[PlyCount "119"]
[EventDate "2024.11.23"]
[EventType "team-tourn"]
[EventCountry "ENG"]
[SourceTitle "playchess.com"]
[Source "ChessBase"]
[SourceQuality "1"]
[TimeControl "40/6000+30:3000+30"]

1. d4 {[%emt 0:10:04]} d5 {[%emt 0:10:07]} 2. c4 {[%emt 0:00:11]} c6 {[%emt 0:00:18]} 3. Nf3 {[%emt 0:00:09]} Nf6 {[%emt 0:00:15]} 4. e3 {[%emt 0:00:14]} e6 {[%emt 0:00:19]} 5. b3 {[%emt 0:01:45]} Ne4 {[%emt 0:00:32]} 6. Nbd2 {[%emt 0:01:23]} Nd7 {[%emt 0:00:40]} 7. Bb2 {[%emt 0:01:11]} f5 {[%emt 0:02:09]} 8. Be2 {[%emt 0:04:04]} Bd6 {[%emt 0:02:28]} 9. O-O {[%emt 0:03:50]} Qf6 {[%emt 0:00:12]} 10. Qc2 {[%emt 0:01:17]} O-O {[%emt 0:00:12]} 11. g3 {[%emt 0:20:48]} g5 {[%emt 0:02:06]} 12. Nxe4 {[%emt 0:03:43]} fxe4 {[%emt 0:02:11]} 13. Nd2 {[%emt 0:00:28]} Qh6 {[%emt 0:02:08]} 14. f3 {[%emt 0:10:35]} exf3 {[%emt 0:04:47]} 15. Bxf3 {[%emt 0:04:10]} Nf6 {[%emt 0:17:18]} 16. Rae1 {[%emt 0:03:25]} g4 {[%emt 0:01:41]} 17. Bg2 {[%emt 0:00:17]} Bd7 {[%emt 0:04:40]} 18. e4 {[%emt 0:02:40]} Bb4 {[%emt 0:04:09]} 19. Bc3 {[%emt 0:01:50]} Bxc3 {[%emt 0:00:25]} 20. Qxc3 {[%emt 0:00:07]} Be8 {[%emt 0:05:47]} 21. Qe3 {[%emt 0:07:15]} Qxe3+ {[%emt 0:05:50]} 22. Rxe3 {[%emt 0:00:06]} Bg6 {[%emt 0:02:31]} 23. cxd5 {[%emt 0:07:59]} cxd5 {[%emt 0:01:32]} 24. exd5 {[%emt 0:02:48]} exd5 {[%emt 0:00:28]} 25. Re7 {[%emt 0:01:02]} Rab8 {[%emt 0:11:25]} 26. Rc1 {[%emt 0:04:19]} Rf7 {[%emt 0:02:03]} 27. Rxf7 {[%emt 0:03:07]} Kxf7 {[%emt 0:00:15]} 28. Nf1 {[%emt 0:00:42]} Re8 {[%emt 0:02:38]} 29. Rc7+ {[%emt 0:00:23]} Re7 {[%emt 0:00:08]} 30. Rxe7+ {[%emt 0:00:04]} Kxe7 {[%emt 0:00:02]} 31. Ne3 {[%emt 0:00:08]} Kd6 {[%emt 0:01:43]} 32. Kf2 {[%emt 0:01:11]} h5 {[%emt 0:01:46]} 33. Ke1 {[%emt 0:00:42]} Ne4 {[%emt 0:06:15]} 34. Bxe4 {[%emt 0:02:37]} dxe4 {[%emt 0:00:34]} 35. Ng2 {[%emt 0:01:44]} Bf7 {[%emt 0:01:26]} 36. Kd2 {[%emt 0:00:34]} a5 {[%emt 0:00:26]} 37. Nf4 {[%emt 0:01:41]} b6 {[%emt 0:02:41]} 38. Ke3 {[%emt 0:00:24]} a4 {[%emt 0:00:10]} 39. bxa4 {[%emt 0:01:52]} Bxa2 {[%emt 0:00:05]} 40. Nxh5 {[%emt 0:00:07]} Bb3 {[%emt 0:00:49]} 41. Nf6 {[%emt 0:50:37]} Bxa4 {[%emt 0:50:29]} 42. Nxe4+ {[%emt 0:00:42]} Ke7 {[%emt 0:00:48]} 43. Nc3 {[%emt 0:03:30]} Bb3 {[%emt 0:02:05]} 44. Kf4 {[%emt 0:00:55]} Be6 {[%emt 0:00:56]} 45. Ke5 {[%emt 0:01:26]} Kf7 {[%emt 0:03:00]} 46. d5 {[%emt 0:01:07]} Bd7 {[%emt 0:00:44]} 47. Kd6 {[%emt 0:00:55]} Be8 {[%emt 0:02:53]} 48. Kc7 {[%emt 0:00:21]} b5 {[%emt 0:00:19]} 49. d6 {[%emt 0:02:05]} Ke6 {[%emt 0:01:05]} 50. Ne4 {[%emt 0:00:00]} b4 {[%emt 0:00:00]} 51. Nc5+ {[%emt 0:00:00]} Kd5 {[%emt 0:00:00]} 52. d7 {[%emt 0:00:00]} Bxd7 {[%emt 0:00:00]} 53. Nxd7 {[%emt 0:00:00]} b3 {[%emt 0:00:00]} 54. Nb6+ {[%emt 0:00:00]} Ke4 {[%emt 0:00:00]} 55. Nc4 {[%emt 0:00:00]} Kf3 {[%emt 0:00:00]} 56. Nd2+ {[%emt 0:00:00]} Kg2 {[%emt 0:00:00]} 57. Nxb3 {[%emt 0:00:00]} Kxh2 {[%emt 0:00:00]} 58. Kd6 {[%emt 0:00:00]} Kxg3 {[%emt 0:00:00]} 59. Nd4 {[%emt 0:00:00]} Kf4 {[%emt 0:00:00]} 60. Kd5 {[%emt 0:07:56]} 1/2-1/2

[Event "4NCL Div 2 2024-25"]
[Site "England"]
[Date "2024.11.24"]
[Round "2.33"]
[White "Korshunov, Sergey And."]
[Black "Starosta, Martyna"]
[Result "1-0"]
[Annotator "TA"]
[ECO "D02"]
[WhiteElo "2330"]
[BlackElo "2309"]
[PlyCount "79"]
[EventDate "2024.11.23"]
[EventType "team-tourn"]
[EventCountry "ENG"]
[SourceTitle "playchess.com"]
[Source "ChessBase"]
[SourceQuality "1"]
[TimeControl "40/6000+30:3000+30"]

{[%evp 9,78,36,32,9,10,26,17,14,16,0,35,29,29,35,33,14,70,0,226,46,183,96,86,82,126,87,145,144,143,129,130,91,145,148,194,197,191,190,285,247,558,542,449,249,259,248,495,472,501,479,1068,695,837,837,1137,1138,1138,759,727,703,889,850,6303,6303,29973,29975,29997,29998,29998,29999,29999]} 1. d4 {[%emt 0:10:02]} d5 {[%emt 0:10:03]} 2. Nf3 {[%emt 0:00:34]} Nf6 {[%emt 0:00:06]} 3. g3 {[%emt 0:03:32]} c5 {[%emt 0:01:03]} 4. Bg2 {[%emt 0:03:44]} h5 {[%emt 0:10:05]} 5. O-O {[%emt 0:03:06]} cxd4 {[%emt 0:00:47]} 6. Nxd4 {[%emt 0:08:07][%cal Oc2c4]} h4 {[%emt 0:03:30] [#]} 7. c4 $1 {[%emt 0:03:32]} hxg3 {[%emt 0:04:09]} 8. hxg3 {[%emt 0:00:04]} Bh3 {[%emt 0:01:16]} 9. Qa4+ {[%emt 0:14:33]} Nbd7 {[%emt 0:06:01]} 10. Bxh3 {[%emt 0:09:56]} Rxh3 {[%emt 0:00:11]} 11. cxd5 {[%emt 0:00:02]} Nxd5 {[%emt 0:03:31]} 12. Nc3 {[%emt 0:07:54]} N5b6 {[%emt 0:04:16]} (12... Nxc3 $11 13. bxc3 Rh5) 13. Qc2 {[%emt 0:01:20] White is more active.} (13. Qb3 $14 Qc8 14. Bg5) 13... e5 $2 {[%emt 0:03:44]} (13... Rh5 $11 {and Black is okay.}) 14. Nf3 $2 {[%emt 0:01:38]} (14. Ne6 $1 $18 {[%cal Re6d8]} fxe6 15. Qg6+ Ke7 16. Ne4) 14... Bc5 {[%emt 0:03:27]} (14... Rh5 $1 $14) 15. Kg2 {[%emt 0:00:33]} ({Better is} 15. Ne4 $18) 15... Rh5 $16 {[%emt 0:01:13]} 16. a4 {[%emt 0:01:15]} Qe7 {[%emt 0:04:13]} 17. Bd2 {[%emt 0:13:48]} Rc8 {[%emt 0:18:35]} (17... O-O-O $142) 18. Rh1 {[%emt 0:01:18]} Rxh1 {[%emt 0:00:46]} 19. Rxh1 {[%emt 0:00:03]} Qe6 {[%emt 0:01:14]} 20. Qe4 {[%emt 0:03:06][%cal Ob2b3]} Nc4 {[%emt 0:09:30] [#]} (20... Bf8 $142) 21. Bc1 $1 {[%emt 0:01:17]} (21. Qxb7 Qc6 22. Qxc6 Rxc6 $16) 21... Nd6 {[%emt 0:04:10]} (21... Bf8 $16) 22. Rh8+ $18 {[%emt 0:01:14]} Nf8 {[%emt 0:00:06] [#]} 23. Qh7 $1 $36 {[%emt 0:04:16][%mdl 2048] White is on the roll.} (23. Qxe5 Qxe5 24. Nxe5 Rd8) 23... Nf5 {[%emt 0:07:08]} (23... e4 $142) 24. e4 {[%emt 0:02:06]} Ne7 $2 {[%emt 0:02:01]} (24... Nd4 {is a better chance.} 25. Qxg7 Nxf3) 25. Qxg7 {[%emt 0:03:26]} Neg6 {[%emt 0:00:08]} 26. Rh5 {[%emt 0:00:14]} (26. Ng5 $142 Qc4 27. Rg8) 26... Be7 {[%emt 0:03:05]} 27. Rf5 {[%emt 0:02:30][%cal Of3g5]} (27. Nxe5 Bf6 28. Qxf7+ Qxf7 29. Nxf7 Kxf7 $11) 27... Rc6 $2 {[%emt 0:01:49]} (27... f6 {was worth a try.} 28. Be3 Qf7) 28. Ng5 {[%emt 0:04:21]} (28. Nxe5 Bf6 29. Rxf6 Qxf6 30. Qxf6 (30. Nxc6 $2 {perishes.} Nh4+ 31. Kh3 Qxg7 $19) 30... Rxf6 $18) 28... Bxg5 {[%emt 0:00:06]} 29. Bxg5 {[%emt 0:00:03]} Qc4 {[%emt 0:02:41]} (29... f6 $142 30. Bxf6 (30. Rxf6 Qd7 $18) 30... Qd7) 30. Rf3 {[%emt 0:01:38] Threatens to win with Nd5.} Qe6 {[%emt 0:02:28]} 31. Nd5 {[%emt 0:00:32]} Nd7 {[%emt 0:00:20] Wards off Rf6} 32. b3 {[%emt 0:03:23]} Ngf8 {[%emt 0:01:33]} 33. Be7 {[%emt 0:00:41]} Qg6 {[%emt 0:02:27]} 34. Bxf8 {[%emt 0:00:21]} Nxf8 {[%emt 0:00:09]} 35. Qxe5+ {[%emt 0:00:06]} Ne6 {[%emt 0:00:16]} 36. Rf6 {[%emt 0:00:23][%cal Bf3f6,Bf6h6,Bh6h8,Bh8e8][%mdl 32]} Qg4 {[%emt 0:00:54]} 37. Rh6 {[%emt 0:00:55]} Qe2 {[%emt 0:01:24]} 38. Rh8+ {[%emt 0:00:06]} Kd7 {[%emt 0:00:04]} 39. Nf6+ {[%emt 0:00:05]} Ke7 {[%emt 0:00:09]} 40. Re8# {[%emt 0:00:05]} 1-0

[Event "4NCL Div 2 2024-25"]
[Site "England"]
[Date "2024.11.24"]
[Round "2.34"]
[White "Cooksey, Paul S"]
[Black "Menzies, Colin"]
[Result "1-0"]
[Annotator "RC"]
[ECO "B06"]
[WhiteElo "2234"]
[BlackElo "2199"]
[PlyCount "69"]
[EventDate "2024.11.23"]
[EventType "team-tourn"]
[EventCountry "ENG"]
[SourceTitle "playchess.com"]
[Source "ChessBase"]
[SourceQuality "1"]
[TimeControl "40/6000+30:3000+30"]

1. d4 {[%emt 0:10:04]} g6 {[%emt 0:10:06]} 2. Nf3 {[%emt 0:00:14]} Bg7 {[%emt 0:00:16]} 3. e4 {[%emt 0:00:20]} d6 {[%emt 0:00:30]} 4. Nc3 {[%emt 0:00:08]} Nc6 {[%emt 0:00:59]} 5. d5 {[%emt 0:02:39]} Ne5 {[%emt 0:00:55]} 6. Nxe5 {[%emt 0:01:18]} Bxe5 {[%emt 0:00:16]} 7. Be3 {[%emt 0:03:15]} e6 {[%emt 0:05:51]} 8. Bd4 {[%emt 0:07:57]} Bxd4 {[%emt 0:05:36]} 9. Qxd4 {[%emt 0:00:55]} e5 {[%emt 0:00:25]} 10. Qd2 {[%emt 0:03:06]} Nf6 {[%emt 0:05:21]} 11. Be2 {[%emt 0:03:14]} a6 {[%emt 0:03:59]} 12. a4 {[%emt 0:03:05]} Bd7 {[%emt 0:05:03]} 13. a5 {[%emt 0:02:56]} c5 {[%emt 0:05:50]} 14. O-O {[%emt 0:04:01]} O-O {[%emt 0:02:13]} 15. Rfe1 {[%emt 0:08:50]} Ne8 {[%emt 0:05:14]} 16. Bf1 {[%emt 0:01:14]} Nc7 {[%emt 0:05:43]} 17. Nd1 {[%emt 0:02:44]} f5 {[%emt 0:05:59]} 18. exf5 {[%emt 0:06:05]} gxf5 {[%emt 0:02:04]} 19. f4 {[%emt 0:02:41]} e4 {[%emt 0:01:40]} 20. Ra3 {[%emt 0:04:51]} Nb5 {[%emt 0:05:20]} 21. Bxb5 {[%emt 0:05:05]} axb5 {[%emt 0:01:02]} 22. b4 {[%emt 0:00:46]} Qf6 {[%emt 0:04:45]} 23. Rg3+ {[%emt 0:03:04]} Kh8 {[%emt 0:00:06]} 24. c3 {[%emt 0:00:16]} Rg8 {[%emt 0:02:53]} 25. Rxg8+ {[%emt 0:02:18]} Rxg8 {[%emt 0:05:37]} 26. Ne3 {[%emt 0:03:14]} Rc8 {[%emt 0:00:43]} 27. Rb1 {[%emt 0:01:39]} cxb4 {[%emt 0:06:25]} 28. cxb4 {[%emt 0:00:44]} Rc3 {[%emt 0:01:42]} 29. Re1 {[%emt 0:08:28]} Kg8 {[%emt 0:02:27]} 30. h3 {[%emt 0:01:27]} Kf7 {[%emt 0:03:40]} 31. Kh2 {[%emt 0:02:40]} Ke7 {[%emt 0:03:22]} 32. Qf2 {[%emt 0:02:37]} Rb3 {[%emt 0:02:22]} 33. Qg3 {[%emt 0:01:37]} Qc3 {[%emt 0:03:40]} 34. Qg5+ {[%emt 0:00:41]} Kf7 {[%emt 0:01:00]} 35. Nxf5 {[%emt 0:02:16]} 1-0

[Event "4NCL Div 2 2024-25"]
[Site "England"]
[Date "2024.11.24"]
[Round "2.35"]
[White "Verbytski, Oleg"]
[Black "Kacprzak, Kacper"]
[Result "0-1"]
[Annotator "RC"]
[ECO "B81"]
[WhiteElo "1968"]
[BlackElo "2291"]
[PlyCount "68"]
[EventDate "2024.11.23"]
[EventType "team-tourn"]
[EventCountry "ENG"]
[SourceTitle "playchess.com"]
[Source "ChessBase"]
[SourceQuality "1"]
[TimeControl "40/6000+30:3000+30"]

1. e4 {[%emt 0:10:01]} c5 {[%emt 0:10:06]} 2. Nf3 {[%emt 0:00:03]} d6 {[%emt 0:00:06]} 3. d4 {[%emt 0:00:03]} cxd4 {[%emt 0:00:06]} 4. Nxd4 {[%emt 0:00:03]} Nf6 {[%emt 0:00:19]} 5. Nc3 {[%emt 0:00:03]} a6 {[%emt 0:00:06]} 6. Be3 {[%emt 0:00:05]} e6 {[%emt 0:00:43]} 7. g4 {[%emt 0:00:21]} h6 {[%emt 0:21:37]} 8. h4 {[%emt 0:00:34]} Be7 {[%emt 0:17:13]} 9. f3 {[%emt 0:05:00]} d5 {[%emt 0:14:36]} 10. exd5 {[%emt 0:02:11]} Nxd5 {[%emt 0:00:50]} 11. Nxd5 {[%emt 0:00:23]} Qxd5 {[%emt 0:00:15]} 12. Bd3 {[%emt 0:01:44]} Nd7 {[%emt 0:00:41]} 13. Qe2 {[%emt 0:02:56]} Nf6 {[%emt 0:01:26]} 14. Nb3 {[%emt 0:04:34]} Qe5 {[%emt 0:08:03]} 15. O-O-O {[%emt 0:03:20]} Nd5 {[%emt 0:02:31]} 16. Be4 {[%emt 0:04:41]} Nxe3 {[%emt 0:10:21]} 17. Qxe3 {[%emt 0:00:08]} Bd6 {[%emt 0:00:18]} 18. Qd3 {[%emt 0:02:16]} Bc7 {[%emt 0:03:23]} 19. g5 {[%emt 0:06:11]} hxg5 {[%emt 0:07:49]} 20. hxg5 {[%emt 0:00:14]} Qxg5+ {[%emt 0:00:55]} 21. Kb1 {[%emt 0:00:08]} Rxh1 {[%emt 0:00:31]} 22. Rxh1 {[%emt 0:00:14]} Ke7 {[%emt 0:00:33]} 23. Rd1 {[%emt 0:05:20]} Qe5 {[%emt 0:02:01]} 24. a4 {[%emt 0:04:23]} f5 {[%emt 0:04:57]} 25. Bxb7 {[%emt 0:03:51]} Bxb7 {[%emt 0:00:08]} 26. Qd7+ {[%emt 0:00:06]} Kf6 {[%emt 0:03:12]} 27. f4 {[%emt 0:01:16]} Qxf4 {[%emt 0:00:13]} 28. Nc5 {[%emt 0:03:31]} Bd5 {[%emt 0:00:30]} 29. Rg1 {[%emt 0:01:16]} Rg8 {[%emt 0:00:41]} 30. Re1 {[%emt 0:01:25]} Rd8 {[%emt 0:00:40]} 31. Rxe6+ {[%emt 0:01:07]} Bxe6 {[%emt 0:00:06]} 32. Qxe6+ {[%emt 0:00:03]} Kg5 {[%emt 0:00:08]} 33. Qe7+ {[%emt 0:00:31]} Kg6 {[%emt 0:01:21]} 34. Nd3 {[%emt 0:00:22]} Qd6 {[%emt 0:00:19]} 0-1